bitfinex-derivatives/quotes_BTCF0:USTF0_20251219
["timestamp","ask_amount","ask_price","bid_price","bid_amount"]
[1766161850227,0.0036,88571.0,88539.0,0.41036268]
[1766161850434,0.0112971,88567.0,88544.0,0.0112999]
[1766161850636,0.0112973,88565.0,88544.0,0.0112999]
[1766161850838,0.0112976,88563.0,88544.0,0.0112999]
[1766161851032,0.02565136,88562.0,88540.0,0.00568]
[1766161851338,0.0001694,88560.0,88548.0,0.0112994]
[1766161851541,1.36e-06,88559.0,88550.0,0.0112992]
[1766161852035,1.36e-06,88559.0,88549.0,0.00568]
[1766161853026,0.06079264,88573.0,88551.0,0.011299]
[1766161853234,0.0112949,88585.0,88560.0,0.41036268]
[1766161853434,0.0112949,88585.0,88561.0,0.00568]
[1766161853634,0.011296,88576.0,88561.0,0.00568]
[1766161853830,0.0112959,88576.0,88561.0,0.00568]
[1766161854138,0.0001694,88577.0,88561.0,0.00568]
[1766161854338,0.0114653,88577.0,88561.0,0.00568]
[1766161854539,0.0001694,88577.0,88561.0,0.00568]
[1766161854937,0.0022,88590.0,88561.0,0.00568]
[1766161855136,0.0112958,88577.0,88561.0,0.00568]
[1766161855338,0.0112955,88580.0,88561.0,0.00568]
[1766161855537,0.0112958,88577.0,88561.0,0.00568]
[1766161856142,0.011297,88568.0,88561.0,0.00568]
[1766161856341,0.0112965,88572.0,88561.0,0.00568]
[1766161856636,0.0112968,88570.0,88561.0,0.00568]
[1766161856838,0.0022,88590.0,88560.0,0.0001694]
[1766161857142,0.0112969,88568.0,88561.0,0.00568]
[1766161857539,0.0022,88590.0,88561.0,0.00568]
[1766161857843,0.0112966,88571.0,88561.0,0.00568]
[1766161858039,0.0112962,88574.0,88561.0,0.00568]
[1766161858238,0.0112969,88569.0,88561.0,0.00568]
[1766161859140,0.0112974,88565.0,88560.0,1e-07]
[1766161859339,0.0112974,88565.0,88561.0,0.00568]
[1766161859940,0.0112976,88563.0,88560.0,1e-07]
[1766161860135,0.0022,88590.0,88540.0,0.41036268]
[1766161860341,0.00568,88589.0,88541.0,1.44664]
[1766161860551,0.0112992,88551.0,88542.0,1.44664]
[1766161860743,0.0112968,88569.0,88542.0,1.44664]
[1766161860940,0.0112998,88546.0,88537.0,1.44096]
[1766161861139,0.0114686,88550.0,88538.0,0.00568]
[1766161861336,0.0001694,88550.0,88538.0,0.00568]
[1766161861537,0.0001694,88550.0,88533.0,0.0001694]
[1766161861745,0.0001694,88550.0,88534.0,0.00568]
[1766161861942,0.0113002,88543.0,88534.0,0.00568]
[1766161862742,0.0112997,88546.0,88535.0,0.00568]
[1766161863136,0.0113001,88544.0,88533.0,0.0001694]
[1766161863439,0.0113001,88544.0,88534.0,0.00568]
[1766161864046,0.0001694,88550.0,88534.0,0.00568]
[1766161864242,0.0113007,88539.0,88531.0,0.00568]
[1766161864439,0.0113006,88539.0,88531.0,0.00568]
[1766161864638,0.02518319,88538.0,88531.0,0.00568]
[1766161864842,0.02518319,88537.0,88531.0,0.00568]
[1766161865050,0.0113,88544.0,88531.0,0.00568]
[1766161865248,0.0113003,88542.0,88531.0,0.00568]
[1766161865438,0.02518323,88541.0,88531.0,0.00568]
[1766161865639,0.02518323,88540.0,88531.0,0.00568]
[1766161865840,0.02518323,88539.0,88531.0,0.00568]
[1766161866044,0.0113001,88543.0,88531.0,0.00568]
[1766161866245,0.02517853,88542.0,88531.0,0.00568]
[1766161866551,0.02517853,88541.0,88531.0,0.00568]
[1766161866740,0.02517853,88540.0,88531.0,0.00568]
[1766161866941,0.02517853,88539.0,88531.0,0.00568]
[1766161867247,0.0001694,88550.0,88501.0,0.06242594]
[1766161867248,0.0112995,88548.0,88501.0,0.06242594]
[1766161867454,0.0112995,88548.0,88500.0,0.41036268]
[1766161867455,0.02517164,88547.0,88522.0,0.00568]
[1766161867639,0.02517164,88546.0,88530.0,0.27923701]
[1766161867948,0.0112995,88548.0,88531.0,0.00568]
[1766161868152,0.02516902,88547.0,88531.0,0.00568]
[1766161868357,0.0112958,88577.0,88537.0,0.29053791]
[1766161868542,0.0112958,88577.0,88530.0,0.0001694]
[1766161868543,0.00568,88576.0,88532.0,0.0113014]
[1766161868748,0.0112987,88554.0,88533.0,0.00568]
[1766161869146,0.0112991,88551.0,88533.0,0.00568]
[1766161869451,0.0001694,88551.0,88533.0,0.0058494]
[1766161870839,0.0112996,88547.0,88533.0,0.0058494]
[1766161871240,0.0114686,88551.0,88533.0,0.0058494]
[1766161871545,0.0112995,88548.0,88533.0,0.0058494]
[1766161871746,0.0001694,88551.0,88534.0,0.00568]
[1766161871939,0.0112999,88545.0,88535.0,0.00568]
[1766161872144,0.0113003,88542.0,88531.0,0.00568]
[1766161872640,0.0026894,88551.0,88529.0,0.00568]
[1766161872950,0.0113019,88529.0,88526.0,0.0018]
[1766161873156,0.0113022,88527.0,88513.0,0.00568]
[1766161873344,0.00010878,88528.0,88512.0,0.00568]
[1766161874542,0.00010878,88528.0,88514.0,0.0113037]
[1766161874749,0.00099999,88580.0,88518.0,0.27923701]
[1766161874750,0.0112967,88570.0,88518.0,0.27923701]
[1766161874952,0.0112988,88554.0,88530.0,0.27923701]
[1766161875154,0.0112988,88554.0,88531.0,0.00568]
[1766161875587,0.0036,88561.0,88531.0,0.00568]
[1766161875754,0.0001694,88551.0,88540.0,0.0113005]
[1766161876057,0.00224,88567.0,88541.0,0.00568]
[1766161876249,0.00224,88567.0,88542.0,0.00568]
[1766161876446,0.0112975,88564.0,88543.0,0.0113001]
[1766161876647,0.0112952,88582.0,88542.0,0.00568]
[1766161876648,0.0112969,88569.0,88542.0,0.00568]
[1766161876953,0.0001694,88564.0,88547.0,0.0001694]
[1766161877453,0.0001694,88564.0,88550.0,0.27923701]
[1766161877656,0.0112962,88574.0,88554.0,0.0112986]
[1766161877950,0.0112965,88572.0,88552.0,0.0112989]
[1766161878151,0.0112951,88583.0,88551.0,0.00568]
[1766161878557,0.00232,88584.0,88551.0,0.00568]
[1766161878759,0.0001694,88576.0,88551.0,0.00568]
[1766161879251,0.0112965,88572.0,88552.0,0.0112989]
[1766161879456,0.011296,88575.0,88552.0,0.0112989]
[1766161879758,0.0112964,88572.0,88552.0,0.0112989]
[1766161880459,0.0001694,88576.0,88554.0,0.0112986]
[1766161880847,0.0001694,88576.0,88551.0,0.00568]
[1766161881048,0.0112965,88571.0,88551.0,0.00568]
[1766161881249,0.0112961,88575.0,88552.0,0.0112989]
[1766161881643,0.0001694,88576.0,88557.0,0.0112983]
[1766161881844,0.0001694,88576.0,88558.0,0.00568]
[1766161882049,0.0001694,88576.0,88559.0,0.011298]
[1766161882245,0.0001694,88576.0,88560.0,0.27914329]
[1766161882442,0.011295,88583.0,88563.0,0.0112975]
[1766161882649,0.0112954,88581.0,88564.0,0.00568]
[1766161883048,0.00232,88584.0,88564.0,0.00568]
[1766161883247,0.0112961,88575.0,88564.0,0.00568]
[1766161883454,0.00232,88584.0,88563.0,0.00568]
[1766161883647,0.0112957,88578.0,88563.0,0.00568]
[1766161883857,0.0112961,88575.0,88563.0,0.00568]
[1766161884155,0.0112954,88580.0,88563.0,0.00568]
[1766161884355,0.0112959,88577.0,88564.0,0.00568]
[1766161884562,0.0112964,88572.0,88561.0,0.0001694]
[1766161884757,0.0112964,88572.0,88562.0,0.00568]
[1766161884953,0.0112946,88587.0,88562.0,0.00568]
[1766161885255,0.0112962,88574.0,88562.0,0.00568]
[1766161885652,0.0112958,88577.0,88562.0,0.00568]
[1766161886253,0.0112961,88575.0,88562.0,0.00568]
[1766161886455,0.0112963,88573.0,88561.0,0.0001694]
[1766161886653,0.0112963,88573.0,88562.0,0.00568]
[1766161886960,0.0112967,88571.0,88562.0,0.00568]
[1766161887159,0.0112961,88575.0,88562.0,0.00568]
[1766161888361,0.0112956,88579.0,88562.0,0.00568]
[1766161888567,0.0112952,88582.0,88562.0,0.00568]
[1766161888855,0.0056,88592.0,88567.0,0.011297]
[1766161889057,0.06084274,88617.0,88570.0,0.27914329]
[1766161889264,0.02452518,88616.0,88585.0,0.0001694]
[1766161889463,0.03581618,88615.0,88591.0,0.0112939]
[1766161889759,0.04689063,88627.0,88602.0,0.0112925]
[1766161889760,0.0112895,88626.0,88602.0,0.0112925]
[1766161889966,0.0112893,88629.0,88605.0,0.00016929]
[1766161890164,0.0112886,88634.0,88610.0,0.27914329]
[1766161890460,0.0112889,88632.0,88611.0,0.00568]
[1766161890658,0.0112888,88632.0,88613.0,0.00016929]
[1766161890861,0.011289,88630.0,88614.0,0.00088]
[1766161891066,0.0112885,88634.0,88614.0,0.00088]
[1766161891564,0.0112889,88631.0,88614.0,0.00088]
[1766161891759,0.07212664,88671.0,88620.0,0.27914329]
[1766161891966,0.0112864,88651.0,88637.0,0.00016929]
[1766161892261,0.32055261,88670.0,88638.0,0.00568]
[1766161892262,0.0112859,88655.0,88638.0,0.00568]
[1766161892457,0.0112831,88677.0,88638.0,0.00568]
[1766161892458,0.0112844,88667.0,88640.0,0.27914329]
[1766161892660,0.00364,88684.0,88650.0,0.27914329]
[1766161892862,0.011284,88670.0,88658.0,0.0001692]
[1766161893057,0.10241535,88692.0,88659.0,0.00568]
[1766161893258,0.0112832,88676.0,88659.0,0.00184]
[1766161893461,0.09015465,88692.0,88659.0,0.00184]
[1766161893656,0.0056,88691.0,88659.0,0.00184]
[1766161893856,0.0112826,88681.0,88659.0,0.00184]
[1766161894069,0.00016853,88679.0,88661.0,0.0001692]
[1766161894568,0.0112835,88674.0,88662.0,0.002]
[1766161894767,0.00016853,88679.0,88662.0,0.002]
[1766161894768,0.01145133,88679.0,88662.0,0.002]
[1766161894963,0.0112835,88674.0,88662.0,0.002]
[1766161895157,0.0112833,88675.0,88662.0,0.002]
[1766161895470,0.0112838,88672.0,88663.0,0.00568]
[1766161895660,0.0112838,88672.0,88664.0,0.00568]
[1766161895858,0.00016853,88679.0,88664.0,0.00568]
[1766161896065,0.012,88700.0,88665.0,0.11875467]
[1766161896368,0.012,88700.0,88664.0,0.00568]
[1766161896670,0.0112784,88714.0,88690.0,0.27914329]
[1766161896872,0.0112784,88714.0,88691.0,0.00136]
[1766161897169,0.00016883,88711.0,88694.0,0.00016909]
[1766161897360,0.00016883,88711.0,88700.0,0.27914329]
[1766161897563,0.00016883,88711.0,88701.0,0.00568]
[1766161897760,0.00016883,88711.0,88694.0,0.00016909]
[1766161898165,0.0112795,88705.0,88659.0,0.0112852]
[1766161898371,0.0112795,88705.0,88670.0,0.27914329]
[1766161898571,0.0112795,88705.0,88671.0,0.00568]
[1766161898770,0.0112814,88690.0,88660.0,0.27914329]
[1766161899070,0.0112814,88690.0,88661.0,0.00568]
[1766161899263,0.00016909,88684.0,88667.0,0.00016909]
[1766161899569,0.0112823,88683.0,88652.0,1.43992]
[1766161899776,0.0112823,88683.0,88653.0,0.00568]
[1766161900067,0.00016909,88684.0,88653.0,0.00568]
[1766161900269,0.01145119,88684.0,88653.0,0.00568]
[1766161900471,0.0112843,88668.0,88640.0,0.27914329]
[1766161900773,0.0112856,88657.0,88645.0,9e-08]
[1766161900963,0.01145409,88663.0,88645.0,9e-08]
[1766161901369,0.0112868,88648.0,88645.0,9e-08]
[1766161901675,0.00568,88653.0,88626.0,1.4398]
[1766161901858,0.00016919,88663.0,88630.0,0.27914329]
[1766161901859,0.0112853,88660.0,88630.0,0.27914329]
[1766161902058,0.0169651,88661.0,88627.0,0.00568]
[1766161902277,0.00568,88661.0,88627.0,0.00568]
[1766161902573,0.0112852,88660.0,88635.0,0.00016919]
[1766161902773,0.0112852,88660.0,88635.0,0.00200919]
[1766161902977,0.00568,88661.0,88640.0,0.27914329]
[1766161903166,0.00016919,88663.0,88640.0,0.27914329]
[1766161903366,0.00016919,88663.0,88641.0,0.0112876]
[1766161903573,0.00016919,88663.0,88642.0,0.00568]
[1766161905666,0.00016919,88663.0,88643.0,0.00568]
[1766161906172,0.00016919,88663.0,88644.0,0.0112872]
[1766161906762,0.00016919,88663.0,88643.0,0.00568]
[1766161907164,0.00016919,88663.0,88635.0,0.00016919]
[1766161907669,0.0112854,88659.0,88636.0,0.00568]
[1766161908169,0.00016919,88663.0,88640.0,0.27914329]
[1766161908372,0.00016919,88663.0,88648.0,0.0112867]
[1766161908572,0.00016919,88663.0,88649.0,0.00568]
[1766161910077,0.00016919,88663.0,88640.0,0.27914329]
[1766161910583,0.0112858,88656.0,88641.0,0.00568]
[1766161910767,0.00016919,88663.0,88601.0,0.0113775]
[1766161910768,0.0056,88655.0,88601.0,0.0113775]
[1766161910971,0.0056,88655.0,88620.0,0.27914329]
[1766161911171,0.0018,88656.0,88630.0,0.27914329]
[1766161911378,0.0018,88656.0,88633.0,0.0112886]
[1766161911679,0.0112866,88649.0,88625.0,0.0112896]
[1766161911878,0.00016919,88646.0,88628.0,0.00016919]
[1766161912083,0.00016919,88646.0,88629.0,0.00568]
[1766161912487,0.00016919,88646.0,88630.0,0.27914329]
[1766161912683,0.00016919,88646.0,88630.0,0.29043219]
[1766161912880,0.00016919,88646.0,88632.0,0.0112887]
[1766161913279,0.00016919,88646.0,88629.0,0.00568]
[1766161913280,0.0112845,88666.0,88642.0,0.0112875]
[1766161913577,0.00212,88665.0,88643.0,0.00568]
[1766161913777,0.00212,88665.0,88650.0,0.0112864]
[1766161913976,0.00212,88665.0,88645.0,0.0112871]
[1766161914181,0.0112852,88661.0,88643.0,0.00568]
[1766161914481,0.0112852,88661.0,88646.0,0.00016919]
[1766161914889,0.0112855,88658.0,88646.0,0.00016919]
[1766161915183,0.0112867,88648.0,88626.0,0.0112894]
[1766161915373,0.0112867,88648.0,88627.0,0.00568]
[1766161915582,0.0112875,88642.0,88627.0,0.00568]
[1766161915981,0.0112879,88639.0,88627.0,0.00568]
[1766161916181,0.0112879,88639.0,88626.0,0.00016919]
[1766161916182,0.00016919,88643.0,88626.0,0.00016919]
[1766161916387,0.00016919,88643.0,88627.0,0.00568]
[1766161916685,0.00016919,88643.0,88628.0,0.00568]
[1766161917073,0.0112883,88636.0,88628.0,0.00568]
[1766161917281,0.0112877,88641.0,88627.0,0.00568]
[1766161917476,0.00016919,88643.0,88633.0,0.0112886]
[1766161917782,0.00016919,88643.0,88630.0,0.29043229]
[1766161918087,0.00016919,88643.0,88628.0,0.0112892]
[1766161918289,0.00016919,88643.0,88631.0,0.0112888]
[1766161918678,0.00016919,88643.0,88628.0,0.0112893]
[1766161918977,0.00016919,88643.0,88628.0,0.0112892]
[1766161919181,0.00016919,88643.0,88631.0,0.0112888]
[1766161919385,0.00016919,88643.0,88630.0,0.0112889]
[1766161919977,0.00016919,88643.0,88628.0,0.0112892]
[1766161920189,0.00036,88652.0,88627.0,0.00568]
[1766161920373,0.00036,88652.0,88630.0,0.27914329]
[1766161920577,0.0112852,88661.0,88639.0,0.0112878]
[1766161920791,0.0112855,88658.0,88639.0,0.00568]
[1766161921086,0.00368,88660.0,88639.0,0.00568]
[1766161921288,0.00016919,88658.0,88641.0,0.00016919]
[1766161921592,1.43956,88677.0,88641.0,0.00016919]
[1766161921781,0.0112846,88665.0,88643.0,0.0112873]
[1766161921979,0.0112856,88657.0,88641.0,0.00016919]
[1766161922178,0.27914329,88680.0,88617.0,0.03951571]
[1766161922179,0.0056,88662.0,88627.0,1.43956]
[1766161922385,0.0112863,88652.0,88630.0,0.011289]
[1766161922885,0.0056,88662.0,88623.0,0.0112899]
[1766161923087,0.0112873,88644.0,88625.0,0.0112896]
[1766161923282,0.0112855,88658.0,88625.0,0.0112896]
[1766161923283,0.00016919,88643.0,88626.0,0.00016919]
[1766161923890,0.0112875,88642.0,88626.0,0.00016919]
[1766161924076,0.00016919,88643.0,88626.0,0.00016919]
[1766161924280,0.0112887,88633.0,88626.0,0.00016919]
[1766161924490,0.0112887,88633.0,88614.0,1.43956]
[1766161924686,0.00016919,88643.0,88610.0,0.27924611]
[1766161925301,0.00016919,88643.0,88620.0,0.27914329]
[1766161925596,0.00016919,88643.0,88631.0,0.0112888]
[1766161925788,0.00016919,88643.0,88629.0,0.00568]
[1766161925989,0.00016919,88643.0,88626.0,0.00568]
[1766161926186,0.0112886,88634.0,88623.0,0.00016919]
[1766161926386,0.00016919,88643.0,88623.0,0.00016919]
[1766161927185,0.00016919,88643.0,88627.0,0.0112893]
[1766161927385,0.00016919,88643.0,88628.0,0.00568]
[1766161927592,0.00016919,88643.0,88629.0,0.0112891]
[1766161928101,0.00016919,88643.0,88628.0,0.00568]
[1766161929097,0.0112885,88635.0,88623.0,0.00016919]
[1766161929288,0.0112885,88635.0,88624.0,0.00184]
[1766161929494,0.0112887,88633.0,88624.0,0.00184]
[1766161930294,0.00016919,88643.0,88624.0,0.00184]
[1766161930790,9e-08,88643.0,88630.0,0.40877615]
[1766161930992,9e-08,88643.0,88631.0,0.00568]
[1766161932295,9e-08,88643.0,88632.0,0.0112888]
[1766161933298,9e-08,88643.0,88631.0,0.00568]
[1766161933884,9e-08,88643.0,88634.0,0.0112884]
[1766161934091,9e-08,88643.0,88636.0,0.0112882]
[1766161934287,9e-08,88643.0,88641.0,0.0112876]
[1766161934496,0.0112829,88678.0,88655.0,0.0112857]
[1766161934789,0.00364,88677.0,88653.0,0.00568]
[1766161935095,0.0149231,88677.0,88654.0,0.00368]
[1766161935494,0.011284,88670.0,88654.0,0.00368]
[1766161935696,0.011284,88670.0,88640.0,0.40877615]
[1766161935697,0.0112848,88664.0,88648.0,0.00568]
[1766161935993,0.0112846,88665.0,88648.0,0.00568]
[1766161936494,0.00016919,88674.0,88648.0,0.00584919]
[1766161936694,0.0112836,88673.0,88653.0,0.0112861]
[1766161936893,0.00016919,88674.0,88653.0,0.0112861]
[1766161937400,0.00016919,88674.0,88656.0,0.0112857]
[1766161937593,0.00016919,88674.0,88653.0,0.0112861]
[1766161937802,0.00016919,88674.0,88648.0,0.00584919]
[1766161937999,0.011284,88670.0,88648.0,0.00584919]
[1766161938394,1.43956,88691.0,88648.0,0.00584919]
[1766161938395,0.0112811,88693.0,88660.0,0.40877615]
[1766161938591,0.0167396,88705.0,88680.0,0.40877615]
[1766161938795,0.00546,88705.0,88681.0,0.00568]
[1766161939098,0.00546,88705.0,88690.0,0.40877615]
[1766161939302,0.00546,88705.0,88688.0,0.0112815]
[1766161939303,0.00546,88705.0,88689.0,0.00568]
[1766161939503,0.0112796,88704.0,88689.0,0.00568]
[1766161939703,0.00546,88705.0,88663.0,0.03951571]
[1766161939901,0.00568,88703.0,88670.0,0.0112839]
[1766161940102,0.0112809,88695.0,88670.0,0.40877615]
[1766161940289,0.00368,88703.0,88674.0,0.0112833]
[1766161940489,0.0112799,88702.0,88678.0,0.0112828]
[1766161940696,0.00016919,88699.0,88686.0,0.0112819]
[1766161941102,0.00016919,88699.0,88681.0,0.01145159]
[1766161941304,0.00016919,88699.0,88684.0,0.0112821]
[1766161941701,0.00016919,88699.0,88681.0,0.00016919]
[1766161941901,0.00016919,88699.0,88682.0,0.0112824]
[1766161942290,0.00016919,88699.0,88681.0,0.00016919]
[1766161942495,0.00546,88705.0,88692.0,0.0112811]
[1766161942701,0.00546,88705.0,88693.0,0.00568]
[1766161943403,0.0112783,88715.0,88693.0,0.00568]
[1766161943590,0.0112789,88710.0,88694.0,0.00552]
[1766161943997,0.00016919,88713.0,88681.0,0.01145169]
[1766161944296,0.0112795,88706.0,88684.0,0.0112821]
[1766161944606,0.00016919,88713.0,88687.0,0.0112818]
[1766161944800,0.0112791,88708.0,88682.0,0.00372]
[1766161945005,0.0112791,88708.0,88683.0,0.0112822]
[1766161945309,0.0112791,88708.0,88687.0,0.0112817]
[1766161945699,0.00016919,88713.0,88686.0,0.0112819]
[1766161945997,0.00016919,88713.0,88687.0,0.0112817]
[1766161946407,0.0112791,88708.0,88689.0,0.0112814]
[1766161946602,0.0112795,88705.0,88686.0,0.0112819]
[1766161946797,0.011279,88710.0,88691.0,0.0112812]
[1766161946996,0.0112793,88707.0,88687.0,0.0112817]
[1766161947199,0.0112793,88707.0,88689.0,0.0112814]
[1766161947406,0.0112788,88710.0,88689.0,0.0112814]
[1766161947709,0.0112788,88710.0,88682.0,0.00372]
[1766161947912,0.00016919,88713.0,88696.0,0.0112805]
[1766161948111,0.0112772,88723.0,88703.0,0.0112797]
[1766161948404,0.00368,88728.0,88702.0,0.00368]
[1766161948705,1.50368,88728.0,88702.0,0.00368]
[1766161948908,1.50368,88728.0,88700.0,0.00488]
[1766161949106,0.0112768,88727.0,88707.0,0.0112791]
[1766161949308,0.00016908,88723.0,88710.0,0.0112788]
[1766161949503,0.00016908,88723.0,88708.0,0.0112791]
[1766161949699,0.00016908,88723.0,88710.0,0.0112788]
[1766161949900,0.00016908,88723.0,88705.0,0.00016908]
[1766161950509,0.0112777,88719.0,88705.0,0.00016908]
[1766161950805,0.00016908,88723.0,88705.0,0.00016908]
[1766161951320,0.0112764,88729.0,88710.0,0.42005495]
[1766161951502,0.01101729,88746.0,88711.0,0.00568]
[1766161951503,0.0112764,88730.0,88711.0,0.00568]
[1766161951700,1.55,88741.0,88711.0,0.00568]
[1766161952011,0.0156754,88738.0,88705.0,0.00016908]
[1766161952213,0.00016908,88728.0,88705.0,0.00016908]
[1766161952405,0.00016908,88728.0,88705.0,8e-08]
[1766161952596,0.011278,88717.0,88705.0,8e-08]
[1766161953004,0.00016908,88728.0,88705.0,8e-08]
[1766161953713,0.0112792,88708.0,88705.0,8e-08]
[1766161953901,0.00368,88718.0,88705.0,8e-08]
[1766161954212,0.0112781,88716.0,88705.0,8e-08]
[1766161954407,0.00368,88718.0,88705.0,8e-08]
[1766161954809,0.0112783,88715.0,88705.0,8e-08]
[1766161955006,0.0149579,88718.0,88705.0,8e-08]
[1766161955315,0.00016908,88728.0,88705.0,0.01127948]
[1766161955621,0.0112776,88720.0,88705.0,8e-08]
[1766161955817,0.0112777,88720.0,88705.0,8e-08]
[1766161956009,0.00568,88726.0,88705.0,8e-08]
[1766161956209,0.011277,88725.0,88706.0,0.0112793]
[1766161956400,0.0112775,88721.0,88705.0,8e-08]
[1766161956605,0.00568,88726.0,88705.0,8e-08]
[1766161956805,0.0112778,88719.0,88705.0,8e-08]
[1766161957017,0.0112782,88716.0,88705.0,8e-08]
[1766161957218,0.0112788,88711.0,88705.0,8e-08]
[1766161957518,0.0112784,88714.0,88705.0,8e-08]
[1766161958013,0.0112792,88708.0,88705.0,8e-08]
[1766161958612,0.011279,88709.0,88705.0,8e-08]
[1766161959321,0.0112793,88707.0,88705.0,8e-08]
[1766161960612,0.0112808,88695.0,88674.0,0.0112833]
[1766161960812,0.0112811,88692.0,88672.0,0.0114039]
[1766161961012,0.0112807,88695.0,88674.0,0.0112833]
[1766161961211,0.0112811,88692.0,88673.0,0.00568]
[1766161961522,0.40818626,88720.0,88673.0,0.00568]
[1766161961523,0.06058087,88734.0,88680.0,0.40818626]
[1766161961819,0.0112793,88706.0,88698.0,8e-08]
[1766161962011,0.0112796,88705.0,88698.0,8e-08]
[1766161962207,0.0112802,88699.0,88698.0,8e-08]
[1766161962412,0.0056,88708.0,88698.0,8e-08]
[1766161963221,0.0112802,88700.0,88698.0,8e-08]
[1766161964918,0.0112792,88707.0,88698.0,8e-08]
[1766161965123,0.0112798,88703.0,88698.0,8e-08]
[1766161965425,0.0112801,88701.0,88698.0,8e-08]
[1766161966530,0.0112802,88699.0,88698.0,8e-08]
[1766161967118,0.00568,88700.0,88672.0,0.0001202]
[1766161967623,0.00568,88700.0,88662.0,0.00545]
[1766161967624,0.0112828,88680.0,88662.0,0.00545]
[1766161967824,0.0112828,88680.0,88663.0,0.0169648]
[1766161968225,0.01145188,88680.0,88663.0,0.01713388]
[1766161968427,0.0001202,88679.0,88664.0,0.00568]
[1766161968724,0.00016908,88680.0,88664.0,0.00568]
[1766161968930,8e-08,88680.0,88675.0,0.0112832]
[1766161969130,0.06073052,88711.0,88664.0,0.00568]
[1766161969131,0.0112801,88700.0,88670.0,0.40818626]
[1766161969330,0.0004,88702.0,88681.0,0.0112825]
[1766161969528,0.01128,88701.0,88683.0,0.0112822]
[1766161969722,0.01128,88701.0,88671.0,0.00568]
[1766161969723,0.0112803,88699.0,88680.0,0.0112826]
[1766161969919,0.0112802,88700.0,88682.0,0.0112823]
[1766161970120,0.0112804,88698.0,88682.0,0.00016908]
[1766161970526,0.00016908,88700.0,88682.0,0.00016908]
[1766161970719,1.43872,88718.0,88682.0,0.00016908]
[1766161970720,0.0112787,88712.0,88682.0,0.00016908]
[1766161970921,0.00368,88711.0,88692.0,0.011281]
[1766161971224,0.0112789,88710.0,88691.0,0.0112812]
[1766161971425,0.0112792,88708.0,88687.0,0.0112816]
[1766161971729,0.01144858,88706.0,88684.0,0.0112821]
[1766161972115,0.01144858,88706.0,88687.0,0.0112818]
[1766161972321,0.00016908,88706.0,88689.0,0.0112814]
[1766161972523,0.00016908,88706.0,88682.0,0.00016908]
[1766161972524,0.00232,88729.0,88690.0,0.00568]
[1766161972726,0.00232,88729.0,88697.0,0.0112804]
[1766161972926,0.0112782,88716.0,88694.0,0.00368]
[1766161973139,0.0112784,88714.0,88695.0,0.0112807]
[1766161973533,0.01144735,88713.0,88696.0,0.00016908]
[1766161973737,0.00016885,88713.0,88696.0,0.00016908]
[1766161974228,0.00016885,88713.0,88687.0,0.00568]
[1766161974434,0.00016885,88713.0,88701.0,0.0112799]
[1766161974737,0.00016885,88713.0,88690.0,0.40818626]
[1766161975329,0.00016885,88713.0,88693.0,0.00016908]
[1766161975523,0.00016885,88713.0,88705.0,0.0112794]
[1766161975722,5e-08,88713.0,88705.0,0.0112794]
[1766161975930,5e-08,88713.0,88701.0,0.0112799]
[1766161976138,5e-08,88713.0,88704.0,0.0112796]
[1766161976740,5e-08,88713.0,88698.0,0.0056]
[1766161978038,5e-08,88713.0,88693.0,0.00016908]
[1766161978339,5e-08,88713.0,88695.0,0.0112807]
[1766161979244,5e-08,88713.0,88694.0,0.00568]
[1766161979540,5e-08,88713.0,88698.0,0.0112803]
[1766161980045,0.01127865,88713.0,88694.0,0.00568]
[1766161980236,5e-08,88713.0,88694.0,0.00568]
[1766161980537,5e-08,88713.0,88674.0,0.00568]
[1766161980840,0.0112814,88690.0,88668.0,0.0112841]
[1766161981134,0.00368,88697.0,88677.0,0.0112829]
[1766161981341,0.40818626,88720.0,88678.0,0.00016908]
[1766161981342,0.00016908,88696.0,88678.0,0.00016908]
[1766161981525,0.00016908,88696.0,88679.0,0.0149627]
[1766161981730,0.00016908,88696.0,88679.0,0.00368]
[1766161982031,8e-08,88696.0,88680.0,0.40818626]
[1766161982235,0.0112776,88720.0,88699.0,0.0112801]
[1766161982431,0.00368,88719.0,88699.0,0.0112801]
[1766161982633,0.0112776,88720.0,88699.0,0.0112801]
[1766161982837,0.00488,88719.0,88699.0,0.0112801]
[1766161983037,0.00368,88718.0,88699.0,0.0112801]
[1766161983233,0.00016908,88717.0,88700.0,0.00016908]
[1766161983432,0.00016908,88717.0,88701.0,0.0112799]
[1766161984339,0.00016908,88717.0,88704.0,0.0112796]
[1766161984844,0.01144708,88717.0,88700.0,0.00016908]
[1766161985643,0.0112783,88714.0,88700.0,0.00016908]
[1766161985842,0.0112787,88712.0,88700.0,0.00016908]
[1766161986936,0.00016908,88717.0,88700.0,0.00016908]
[1766161986937,0.0112784,88714.0,88700.0,0.00016908]
[1766161987248,8e-08,88717.0,88700.0,0.40835534]
[1766161987540,0.0112714,88769.0,88700.0,0.40835534]
[1766161987541,0.0112729,88758.0,88707.0,0.40818626]
[1766161987737,0.0112725,88760.0,88720.0,0.40818626]
[1766161987945,1.511272,88764.0,88730.0,0.40818626]
[1766161988155,1.511272,88764.0,88736.0,0.0112754]
[1766161988340,1.511272,88764.0,88741.0,0.00016908]
[1766161988544,0.00184,88765.0,88741.0,0.00016908]
[1766161988732,0.00184,88765.0,88744.0,0.0112744]
[1766161988937,0.00184,88765.0,88748.0,0.0112739]
[1766161989136,0.01153632,88786.0,88748.0,0.0112739]
[1766161989137,0.0112707,88774.0,88748.0,0.0112739]
[1766161989334,0.19701872,88843.0,88752.0,0.00016899]
[1766161989335,0.011272,88764.0,88752.0,0.00016899]
[1766161989535,0.011273,88756.0,88727.0,1.43852]
[1766161989753,0.0112736,88752.0,88728.0,0.00568]
[1766161989940,0.0112742,88747.0,88728.0,0.00568]
[1766161990145,0.00368,88756.0,88730.0,0.27798891]
[1766161990352,0.00368,88756.0,88731.0,0.0112761]
[1766161990649,1.5,88772.0,88741.0,0.0112748]
[1766161990650,0.0012,88765.0,88741.0,0.0112748]
[1766161990844,0.0012,88765.0,88742.0,0.0112746]
[1766161991040,0.0012,88765.0,88746.0,0.0112742]
[1766161991243,0.0112705,88776.0,88746.0,0.0112742]
[1766161991541,0.0112709,88773.0,88746.0,0.0112742]
[1766161991739,0.0112714,88769.0,88751.0,0.00016899]
[1766161991942,0.0112713,88769.0,88751.0,0.00016899]
[1766161992758,1.43836,88793.0,88759.0,0.27798891]
[1766161992947,0.10050623,88834.0,88751.0,0.00016899]
[1766161992948,0.08061998,88832.0,88760.0,1.44024]
[1766161993150,0.0112659,88812.0,88780.0,0.27798891]
[1766161993349,0.00568,88811.0,88780.0,0.27798891]